bitfinex-derivatives/quotes_BTCF0:USTF0_20250322
["timestamp","ask_amount","ask_price","bid_price","bid_amount"]
[1742664418768,0.1832915,84233.0,84232.0,0.1813529]
[1742664418970,0.1834515,84233.0,84232.0,0.1813529]
[1742664419572,0.1834515,84233.0,84232.0,0.1815929]
[1742664422182,0.1834515,84233.0,84232.0,0.00084]
[1742664422363,0.1834515,84233.0,84226.0,0.11893893]
[1742664422364,0.11876,84227.0,84226.0,0.11893893]
[1742664422566,0.11952,84227.0,84226.0,0.11953893]
[1742664422973,0.33353902,84227.0,84226.0,0.11953893]
[1742664424973,0.34530907,84227.0,84226.0,0.11953893]
[1742664426974,0.34530907,84227.0,84226.0,0.13490705]
[1742664434793,0.34530907,84227.0,84226.0,0.16810705]
[1742664435792,0.34530907,84227.0,84226.0,0.15273893]
[1742664438787,0.34530907,84227.0,84226.0,0.21623893]
[1742664438988,0.34530907,84227.0,84226.0,0.15223893]
[1742664442095,0.34530907,84227.0,84226.0,0.3652773]
[1742664442591,0.34530907,84227.0,84226.0,0.3981773]
[1742664445393,0.34530907,84227.0,84226.0,0.18513893]
[1742664452696,0.34530907,84227.0,84226.0,0.3981773]
[1742664453491,0.31470907,84227.0,84226.0,0.4302773]
[1742664455704,0.31470907,84227.0,84226.0,0.3981773]
[1742664458107,0.31470907,84227.0,84226.0,0.4307773]
[1742664460008,0.19594907,84227.0,84226.0,0.4307773]
[1742664460608,0.19594907,84227.0,84226.0,0.21773893]
[1742664461005,0.31470907,84227.0,84226.0,0.21773893]
[1742664482709,0.06546,84227.0,84226.0,0.21773893]
[1742664482915,0.0647,84227.0,84226.0,0.21773893]
[1742664483117,0.06546,84227.0,84226.0,0.21773893]
[1742664485228,0.18422,84227.0,84226.0,0.21773893]
[1742664487425,0.06546,84227.0,84226.0,0.21773893]
[1742664487823,0.18422,84227.0,84226.0,0.21773893]
[1742664489838,0.06546,84227.0,84226.0,0.21773893]
[1742664495141,0.18422,84227.0,84226.0,0.21773893]
[1742664495340,0.06546,84227.0,84226.0,0.21773893]
[1742664496725,0.18422,84227.0,84226.0,0.21773893]
[1742664496930,0.18422,84227.0,84226.0,0.18513893]
[1742664497538,0.06546,84227.0,84226.0,0.18513893]
[1742664498539,0.06546,84227.0,84226.0,0.21613893]
[1742664498743,0.18422,84227.0,84226.0,0.21613893]
[1742664499334,0.18422,84227.0,84226.0,0.18513893]
[1742664500031,0.06546,84227.0,84226.0,0.18513893]
[1742664502148,0.18422,84227.0,84226.0,0.18513893]
[1742664502839,0.06546,84227.0,84226.0,0.18513893]
[1742664503042,0.06546,84227.0,84226.0,0.21723893]
[1742664507051,0.18422,84227.0,84226.0,0.21723893]
[1742664508148,0.06546,84227.0,84226.0,0.21723893]
[1742664537480,0.18422,84227.0,84226.0,0.21723893]
[1742664538272,0.06546,84227.0,84226.0,0.21723893]
[1742664541977,0.18422,84227.0,84226.0,0.21723893]
[1742664542572,0.06546,84227.0,84226.0,0.21723893]
[1742664565995,0.18422,84227.0,84226.0,0.21723893]
[1742664567990,0.06546,84227.0,84226.0,0.21723893]
[1742664571793,0.06546,84227.0,84226.0,0.57803893]
[1742664574296,0.06546,84227.0,84226.0,0.21723893]
[1742664575693,0.06546,84227.0,84226.0,0.18513893]
[1742664575897,0.09706,84227.0,84226.0,0.18513893]
[1742664585796,0.21582,84227.0,84226.0,0.18513893]
[1742664585996,0.09706,84227.0,84226.0,0.18513893]
[1742664588303,0.21582,84227.0,84226.0,0.18513893]
[1742664596323,0.18422,84227.0,84226.0,0.18513893]
[1742664600122,0.06546,84227.0,84226.0,0.18513893]
[1742664601424,0.18422,84227.0,84226.0,0.18513893]
[1742664603233,0.06546,84227.0,84226.0,0.18513893]
[1742664603438,0.18422,84227.0,84226.0,0.18513893]
[1742664603933,0.06546,84227.0,84226.0,0.18513893]
[1742664606928,0.18422,84227.0,84226.0,0.18513893]
[1742664607335,0.06546,84227.0,84226.0,0.18513893]
[1742664608830,0.18422,84227.0,84226.0,0.18513893]
[1742664609532,0.18422,84227.0,84226.0,0.11953893]
[1742664609831,0.18422,84227.0,84219.0,0.07110928]
[1742664609832,0.1187755,84216.0,84215.0,0.4795762]
[1742664610135,0.1187755,84216.0,84215.0,0.00064]
[1742664610332,0.1196955,84216.0,84215.0,0.00064]
[1742664610633,0.1187825,84211.0,84210.0,0.21303837]
[1742664610933,0.2326625,84211.0,84210.0,0.21367837]
[1742664611435,0.35140548,84211.0,84210.0,0.21367837]
[1742664611730,0.44600548,84211.0,84210.0,0.21367837]
[1742664612537,0.44600548,84211.0,84210.0,0.1194239]
[1742664616026,0.44600548,84211.0,84210.0,0.00064]
[1742664616435,0.1187839,84210.0,84209.0,0.118864]
[1742664616648,0.1197039,84210.0,84209.0,0.119464]
[1742664616938,0.1848039,84210.0,84209.0,0.119464]
[1742664617139,0.30355534,84210.0,84209.0,0.119464]
[1742664628453,0.30355534,84210.0,84209.0,0.151064]
[1742664633147,0.30355534,84210.0,84209.0,0.03228]
[1742664633344,0.30355534,84210.0,84209.0,0.03168]
[1742664633545,0.30355534,84210.0,84209.0,8e-05]
[1742664635151,0.30355534,84210.0,84209.0,0.03204]
[1742664636253,0.30355534,84210.0,84209.0,0.1508254]
[1742664636651,0.30355534,84210.0,84209.0,0.03204]
[1742664636853,0.30355534,84210.0,84209.0,0.1508254]
[1742664637050,0.30355534,84210.0,84209.0,0.1820254]
[1742664638059,0.30355534,84210.0,84209.0,0.2144254]
[1742664639447,0.30355534,84210.0,84209.0,0.2134654]
[1742664640757,0.66435534,84210.0,84209.0,0.2140654]
[1742664640949,0.66435534,84210.0,84209.0,0.2134654]
[1742664641150,0.66435534,84210.0,84209.0,0.2141454]
[1742664644351,0.66435534,84210.0,84209.0,0.2140654]
[1742664645063,0.77731534,84210.0,84209.0,0.2140654]
[1742664665875,0.65853144,84210.0,84209.0,0.2140654]
[1742664666078,0.54557144,84210.0,84209.0,0.2140654]
[1742664666263,0.77731534,84210.0,84209.0,0.2140654]
[1742664667871,0.48047144,84210.0,84209.0,0.2140654]
[1742664668065,0.11967144,84210.0,84209.0,0.2140654]
[1742664668269,0.23845534,84210.0,84209.0,0.2140654]
[1742664669070,0.1197039,84210.0,84209.0,0.2140654]
[1742664669769,0.03162,84210.0,84209.0,0.2140654]
[1742664671979,0.06452,84210.0,84209.0,0.2140654]
[1742664674369,0.03162,84210.0,84209.0,0.2140654]
[1742664679383,0.06472,84210.0,84209.0,0.2140654]
[1742664680186,0.1835039,84210.0,84209.0,0.2140654]
[1742664696189,0.1835039,84210.0,84209.0,0.42710377]
[1742664703102,0.1835039,84210.0,84209.0,0.2140654]
[1742664707804,0.1835039,84210.0,84209.0,0.42710377]
[1742664714707,0.1835039,84210.0,84209.0,0.2140654]
[1742664734449,0.06472,84210.0,84209.0,0.2140654]
[1742664735342,0.1835039,84210.0,84209.0,0.2140654]
[1742664739136,0.1835039,84210.0,84209.0,0.23019849]
[1742664739740,0.1835039,84210.0,84209.0,0.27188924]
[1742664741143,0.1835039,84210.0,84209.0,0.25575615]
[1742664745451,0.1835039,84210.0,84209.0,0.2301003]
[1742664746154,0.06472,84210.0,84209.0,0.2301003]
[1742664746358,0.06472,84210.0,84209.0,0.2294043]
[1742664747154,0.1835039,84210.0,84209.0,0.2294043]
[1742664747452,0.1835039,84210.0,84209.0,0.2140654]
[1742664748149,0.1835039,84210.0,84209.0,0.22970071]
[1742664750356,0.1835039,84210.0,84209.0,0.2140654]
[1742664751460,0.06472,84210.0,84209.0,0.22969842]
[1742664751657,0.0593816,84225.0,84218.0,0.1187727]
[1742664751846,0.11292,84222.0,84218.0,0.22980123]
[1742664752155,0.00109813,84219.0,84218.0,0.22980123]
[1742664752358,0.00109813,84219.0,84218.0,0.2141727]
[1742664752759,0.00017813,84219.0,84218.0,0.2141727]
[1742664753249,0.00109813,84219.0,84218.0,0.2141727]
[1742664754554,0.00109813,84219.0,84218.0,0.22589371]
[1742664754752,0.00017813,84219.0,84218.0,0.22589371]
[1742664755148,0.00109813,84219.0,84218.0,0.22589371]
[1742664755347,0.03329813,84219.0,84218.0,0.22589371]
[1742664757160,0.03237813,84219.0,84218.0,0.22589371]
[1742664758249,0.00017813,84219.0,84218.0,0.22589371]
[1742664758749,0.00109813,84219.0,84218.0,0.22589371]
[1742664758946,0.00017813,84219.0,84218.0,0.22589371]
[1742664759954,0.00113814,84219.0,84218.0,0.22589371]
[1742664760157,0.00017813,84219.0,84218.0,0.22589371]
[1742664760649,0.00109813,84219.0,84218.0,0.22589371]
[1742664760849,0.00017813,84219.0,84218.0,0.22589371]
[1742664764462,0.00109813,84219.0,84218.0,0.22589371]
[1742664764664,0.00017813,84219.0,84218.0,0.22589371]
[1742664764854,0.00113814,84219.0,84218.0,0.22589371]
[1742664765050,0.00017813,84219.0,84218.0,0.22589371]
[1742664767455,0.03097813,84219.0,84218.0,0.22589371]
[1742664768061,0.03097813,84219.0,84218.0,0.58669371]
[1742664775053,0.03189813,84219.0,84218.0,0.58669371]
[1742664775559,0.03097813,84219.0,84218.0,0.58669371]
[1742664776063,0.03189813,84219.0,84218.0,0.58669371]
[1742664776667,0.03097813,84219.0,84218.0,0.58669371]
[1742664777881,0.03189813,84219.0,84218.0,0.58669371]
[1742664780662,0.03189813,84219.0,84218.0,0.22589371]
[1742664780863,0.03189813,84219.0,84218.0,0.58669371]
[1742664781974,0.03097813,84219.0,84218.0,0.58669371]
[1742664782877,0.03097813,84219.0,84218.0,0.80024106]
[1742664784280,0.03097813,84219.0,84218.0,0.76794106]
[1742664784869,0.03097813,84219.0,84218.0,0.55439371]
[1742664785373,0.03097813,84219.0,84218.0,0.5704288]
[1742664785570,0.03097813,84219.0,84218.0,0.58545448]
[1742664787670,0.03097813,84219.0,84218.0,0.57373347]
[1742664789480,0.06287813,84219.0,84218.0,0.57068945]
[1742664789676,0.06287813,84219.0,84218.0,0.57040071]
[1742664790280,0.06387813,84219.0,84218.0,0.57040071]
[1742664790579,0.06387813,84219.0,84218.0,0.55465436]
[1742664793584,0.06287813,84219.0,84218.0,0.55465436]
[1742664793785,0.06379813,84219.0,84218.0,0.55465436]
[1742664797986,0.06287813,84219.0,84218.0,0.55465436]
[1742664803383,0.06287813,84219.0,84218.0,0.19385436]
[1742664803583,0.06383814,84219.0,84218.0,0.55465436]
[1742664803894,0.06287813,84219.0,84218.0,0.55465436]
[1742664805294,0.06379813,84219.0,84218.0,0.55465436]
[1742664807697,0.06287813,84219.0,84218.0,0.55465436]
[1742664808992,0.06379813,84219.0,84218.0,0.55465436]
[1742664809191,0.18256933,84219.0,84218.0,0.0311]
[1742664809395,0.18256933,84219.0,84218.0,0.1187727]
[1742664809591,0.1187741,84217.0,84216.0,0.0593876]
[1742664809889,0.1196941,84217.0,84216.0,0.0599876]
[1742664810389,0.23843285,84217.0,84216.0,0.0599876]
[1742664811592,0.23843285,84217.0,84216.0,0.0912876]
[1742664816902,0.23843285,84217.0,84216.0,0.1214876]
[1742664818095,0.26883285,84217.0,84216.0,0.1214876]
[1742664831304,0.15005875,84217.0,84216.0,0.1214876]
[1742664831908,0.18185875,84217.0,84216.0,0.1214876]
[1742664834920,0.30063285,84217.0,84216.0,0.1214876]
[1742664836409,0.18185875,84217.0,84216.0,0.1214876]
[1742664837913,0.30063285,84217.0,84216.0,0.1214876]
[1742664838114,0.18185875,84217.0,84216.0,0.1214876]
[1742664840215,0.30063285,84217.0,84216.0,0.1214876]
[1742664852836,0.18185875,84217.0,84216.0,0.1214876]
[1742664853537,0.30063285,84217.0,84216.0,0.1214876]
[1742664858644,0.18185875,84217.0,84216.0,0.1214876]
[1742664860041,0.30063285,84217.0,84216.0,0.1214876]
[1742664860227,0.18185875,84217.0,84216.0,0.1214876]
[1742664860630,0.30063285,84217.0,84216.0,0.1214876]
[1742664864049,0.18185875,84217.0,84216.0,0.1214876]
[1742664864740,0.18185875,84217.0,84216.0,0.13643271]
[1742664865333,0.30063285,84217.0,84216.0,0.13643271]
[1742664867943,0.18185875,84217.0,84216.0,0.13643271]
[1742664868448,0.30063285,84217.0,84216.0,0.13643271]
[1742664869444,0.18185875,84217.0,84216.0,0.13643271]
[1742664870552,0.00092,84217.0,84216.0,0.13643271]
[1742664872360,0.06282,84217.0,84216.0,0.13643271]
[1742664874060,0.06282,84217.0,84216.0,0.34994104]
[1742664875159,0.0619,84217.0,84216.0,0.34994104]
[1742664875558,0.06282,84217.0,84216.0,0.34994104]
[1742664876060,0.06282,84217.0,84216.0,0.36572872]
[1742664876358,0.06282,84217.0,84216.0,0.36572869]
[1742664876962,0.0619,84217.0,84216.0,0.36572869]
[1742664878156,0.0619,84217.0,84216.0,0.36593857]
[1742664879559,0.0619,84217.0,84216.0,0.15243024]
[1742664879751,0.06282,84217.0,84216.0,0.15243024]
[1742664879952,0.06282,84217.0,84216.0,0.15246121]
[1742664880560,0.0619,84217.0,84216.0,0.15246121]
[1742664880757,0.06282,84217.0,84216.0,0.15246121]
[1742664880962,0.0619,84217.0,84216.0,0.15246121]
[1742664881856,0.06282,84217.0,84216.0,0.15246121]
[1742664882264,0.0619,84217.0,84216.0,0.15246121]
[1742664882669,0.031,84217.0,84216.0,0.15246121]
[1742664883065,0.031,84217.0,84216.0,0.13643271]
[1742664883865,0.03192,84217.0,84216.0,0.13643271]
[1742664884768,0.031,84217.0,84216.0,0.13643271]
[1742664885667,0.03192,84217.0,84216.0,0.13643271]
[1742664886974,0.031,84217.0,84216.0,0.13643271]
[1742664887461,0.03192,84217.0,84216.0,0.13643271]
[1742664888170,0.03192,84217.0,84216.0,0.34994104]
[1742664888371,0.031,84217.0,84216.0,0.34994104]
[1742664891067,0.031,84217.0,84216.0,0.33499593]
[1742664891364,0.03192,84217.0,84216.0,0.36603258]
[1742664891770,0.06432,84217.0,84216.0,0.36603258]
[1742664892962,0.06432,84217.0,84216.0,0.36602516]
[1742664895077,0.06432,84217.0,84216.0,0.36603139]
[1742664896059,0.06432,84217.0,84216.0,0.15252306]
[1742664896770,0.06432,84217.0,84216.0,0.15255242]
[1742664898673,0.06432,84217.0,84216.0,0.13734527]
[1742664898979,0.06432,84217.0,84216.0,0.15256439]
[1742664900469,0.06432,84217.0,84216.0,0.15256847]
[1742664901774,0.06432,84217.0,84216.0,0.15256914]
[1742664906177,0.06432,84217.0,84216.0,0.13670672]
[1742664907368,0.06432,84217.0,84216.0,0.13665396]
[1742664913281,0.06432,84217.0,84216.0,0.1524306]
[1742664916871,0.06432,84217.0,84216.0,0.15241682]
[1742664918682,0.06432,84217.0,84216.0,0.15241405]
[1742664921392,0.06432,84217.0,84216.0,0.13665396]
[1742664927894,0.06432,84217.0,84216.0,0.1214876]
[1742664928192,0.06432,84217.0,84216.0,0.13663498]
[1742664928393,0.06432,84217.0,84216.0,0.15239309]
[1742664931597,0.06432,84217.0,84216.0,0.13663498]
[1742664931900,0.06432,84217.0,84216.0,0.15239562]
[1742664933397,0.06432,84217.0,84216.0,0.13663498]
[1742664934394,0.06432,84217.0,84216.0,0.15231737]
[1742664934595,0.00092,84217.0,84216.0,0.15231737]
[1742664938994,0.03132,84217.0,84216.0,0.15231737]
[1742664939303,0.00092,84217.0,84216.0,0.15231737]
[1742664940406,0.00017813,84219.0,84218.0,0.1187727]
[1742664940707,0.00117813,84219.0,84218.0,0.13460008]
[1742664940907,0.00017813,84219.0,84218.0,0.19960008]
[1742664941097,8e-05,84226.0,84225.0,0.1187628]
[1742664941298,0.001,84226.0,84225.0,0.13469938]
[1742664941509,0.00092,84226.0,84225.0,0.1193628]
[1742664942007,0.00092,84226.0,84225.0,0.1843628]
[1742664942405,0.00092,84226.0,84225.0,0.19602575]
[1742664943100,0.03252,84226.0,84225.0,0.19602575]
[1742664943507,0.06342,84226.0,84225.0,0.19602575]
[1742664943798,0.1821814,84226.0,84225.0,0.19602575]
[1742664944503,0.1821814,84226.0,84225.0,0.19610575]
[1742664949016,0.1821814,84226.0,84225.0,0.1844428]
[1742664950813,0.1821814,84226.0,84225.0,0.19616029]
[1742664953713,0.1821814,84226.0,84225.0,0.1844428]
[1742664954413,0.1821814,84226.0,84225.0,0.19627575]
[1742664955516,0.1821814,84226.0,84225.0,0.1844428]
[1742664956208,0.66171028,84226.0,84225.0,0.03308]
[1742664956407,0.66171028,84226.0,84225.0,0.1512428]
[1742664956618,0.66171028,84226.0,84225.0,0.1517628]
[1742664956813,0.66171028,84226.0,84225.0,0.1518428]
[1742664957511,0.66171028,84226.0,84225.0,0.03308]
[1742664957710,0.66171028,84226.0,84225.0,0.1512428]
[1742664957910,0.66171028,84226.0,84225.0,0.1518828]
[1742664959114,0.67335992,84226.0,84225.0,0.1518828]
[1742664959912,0.67335992,84226.0,84225.0,0.00072]
[1742664960113,0.67335992,84226.0,84222.0,8e-05]
[1742664960114,0.1187656,84223.0,84222.0,8e-05]
[1742664960314,0.23344561,84223.0,84222.0,8e-05]
[1742664960618,0.23344561,84223.0,84222.0,0.118847]
[1742664960816,0.35217449,84223.0,84222.0,0.119407]
[1742664961017,0.41637449,84223.0,84222.0,0.119407]
[1742664962321,0.41637449,84223.0,84222.0,0.149407]
[1742664967423,0.77717449,84223.0,84222.0,0.149407]
[1742664969120,0.77717449,84223.0,84222.0,0.181407]
[1742664970432,0.77717449,84223.0,84222.0,0.180767]
[1742664970823,0.77605448,84223.0,84222.0,0.180767]
[1742664973233,0.41525448,84223.0,84222.0,0.180767]
[1742664973424,0.77605448,84223.0,84222.0,0.180767]
[1742664975319,0.77605448,84223.0,84222.0,0.210867]
[1742664975525,0.77721448,84223.0,84222.0,0.211507]
[1742664976734,0.77721448,84223.0,84222.0,0.09274]
[1742664976941,0.77721448,84223.0,84222.0,0.211507]
[1742664977328,0.41641448,84223.0,84222.0,0.211507]
[1742664977530,0.77721448,84223.0,84222.0,0.211507]
[1742664991748,0.41641448,84223.0,84222.0,0.572307]
[1742664992050,0.41641448,84223.0,84222.0,0.211507]
[1742664992248,0.41641448,84223.0,84222.0,0.22341652]
[1742664999054,0.41641448,84223.0,84222.0,0.211507]
[1742665003251,0.14696,84223.0,84222.0,0.211507]
[1742665003459,0.26569311,84223.0,84222.0,0.211507]
[1742665003959,0.38445871,84223.0,84222.0,0.211507]
[1742665010059,0.41475871,84223.0,84222.0,0.211507]
[1742665014458,0.44595871,84223.0,84222.0,0.03064]
[1742665014665,0.44595871,84223.0,84222.0,0.149407]
[1742665015563,0.44595871,84223.0,84222.0,0.03064]
[1742665015765,0.44595871,84223.0,84222.0,0.06064]
[1742665016766,0.44595871,84223.0,84222.0,0.179407]
[1742665019959,0.44595871,84223.0,84222.0,0.06064]
[1742665020158,0.44595871,84223.0,84222.0,0.06]
[1742665021058,0.44595871,84223.0,84222.0,0.178767]
[1742665021258,0.44595871,84223.0,84222.0,0.179367]
[1742665023672,0.80675871,84223.0,84222.0,0.179367]
[1742665028277,0.80675871,84223.0,84222.0,0.212667]
[1742665029681,0.77555871,84223.0,84222.0,0.212667]
[1742665034290,0.41475871,84223.0,84222.0,0.212667]
[1742665034588,0.77555871,84223.0,84222.0,0.212667]
[1742665040685,0.41475871,84223.0,84222.0,0.212667]
[1742665040886,0.77555871,84223.0,84222.0,0.212667]
[1742665056993,0.77555871,84223.0,84222.0,0.0606]
[1742665057196,0.80665871,84223.0,84222.0,0.0306]
[1742665058989,0.80665871,84223.0,84222.0,0.062]
[1742665060288,0.80665871,84223.0,84222.0,0.180767]
[1742665061994,0.80665871,84223.0,84222.0,0.062]
[1742665062390,0.80665871,84223.0,84222.0,0.180767]
[1742665064202,0.80665871,84223.0,84222.0,0.062]
[1742665065195,0.44585871,84223.0,84222.0,0.062]
[1742665065401,0.80665871,84223.0,84222.0,0.062]
[1742665070409,0.80665871,84223.0,84222.0,0.180767]
[1742665072205,0.44585871,84223.0,84222.0,0.180767]
[1742665072417,0.80665871,84223.0,84222.0,0.180767]
[1742665072601,0.80665871,84223.0,84222.0,0.062]
[1742665072802,0.80665871,84223.0,84222.0,0.0614]
[1742665073012,0.80665871,84223.0,84222.0,0.06252]
[1742665074315,0.80665871,84223.0,84222.0,0.181287]
[1742665075403,0.44585871,84223.0,84222.0,0.181287]
[1742665075605,0.80665871,84223.0,84222.0,0.181287]
[1742665075910,0.80665871,84223.0,84222.0,0.06252]
[1742665085917,0.77555871,84223.0,84222.0,0.06252]
[1742665090425,0.77555871,84223.0,84222.0,0.0614]
[1742665090608,0.77555871,84223.0,84222.0,0.06204]
[1742665097115,0.77555871,84223.0,84222.0,0.0614]
[1742665097324,0.77555871,84223.0,84222.0,0.06252]
[1742665097922,0.77555871,84223.0,84222.0,0.0614]
[1742665098211,0.77555871,84223.0,84222.0,0.062]
[1742665099239,0.80795871,84223.0,84222.0,0.062]
[1742665102723,0.80795871,84223.0,84222.0,0.0614]
[1742665103920,0.80795871,84223.0,84222.0,0.06204]
[1742665108032,0.77555871,84223.0,84222.0,0.06204]
[1742665112325,0.77555871,84223.0,84222.0,0.0614]
[1742665112548,0.77555871,84223.0,84222.0,0.062]
[1742665114638,0.77555871,84223.0,84222.0,0.0614]
[1742665114937,0.41475871,84223.0,84222.0,0.062]
[1742665115234,0.77555871,84223.0,84222.0,0.062]
[1742665116237,0.41475871,84223.0,84222.0,0.062]
[1742665116426,0.77555871,84223.0,84222.0,0.062]
[1742665120539,0.77555871,84223.0,84222.0,0.0614]
[1742665120944,0.77555871,84223.0,84222.0,0.062]
[1742665123850,0.77555871,84223.0,84222.0,0.06208]
[1742665124328,0.77555871,84223.0,84222.0,0.0614]
[1742665124533,0.77555871,84223.0,84222.0,0.06252]
[1742665126434,0.77555871,84223.0,84222.0,0.0614]
[1742665126635,0.77555871,84223.0,84222.0,0.06252]
[1742665127236,0.41475871,84223.0,84222.0,0.06252]
[1742665127436,0.77555871,84223.0,84222.0,0.06252]
[1742665128534,0.77555871,84223.0,84222.0,0.0614]
[1742665129138,0.77555871,84223.0,84222.0,0.062]
[1742665129547,0.77555871,84223.0,84222.0,0.0614]
[1742665129948,0.77555871,84223.0,84222.0,0.06252]
[1742665132848,0.77555871,84223.0,84222.0,0.0614]
[1742665133349,0.77555871,84223.0,84222.0,0.062]
[1742665134542,0.77555871,84223.0,84222.0,0.0614]
[1742665134744,0.77555871,84223.0,84222.0,0.062]
[1742665135449,0.77555871,84223.0,84222.0,0.0614]
[1742665135949,0.77555871,84223.0,84222.0,0.062]
[1742665136640,0.77555871,84223.0,84222.0,0.0614]
[1742665139344,0.77555871,84223.0,84222.0,0.062]
[1742665140850,0.77555871,84223.0,84222.0,0.0614]
[1742665141345,0.77555871,84223.0,84222.0,0.062]
[1742665142153,0.77555871,84223.0,84222.0,0.0614]
[1742665142346,0.77555871,84223.0,84222.0,0.062]
[1742665143247,0.77543871,84223.0,84222.0,0.062]
[1742665143552,0.77543871,84223.0,84222.0,0.0614]
[1742665144854,0.77543871,84223.0,84222.0,0.062]
[1742665145443,0.77543871,84223.0,84222.0,0.0614]
[1742665146756,0.77543871,84223.0,84222.0,0.062]
[1742665146955,0.77543871,84223.0,84222.0,0.0614]
[1742665148154,0.77543871,84223.0,84222.0,0.06252]
[1742665150552,0.77543871,84223.0,84222.0,0.0614]
[1742665150758,0.77543871,84223.0,84222.0,0.062]
[1742665151949,0.77543871,84223.0,84222.0,0.0614]
[1742665152955,0.77543871,84223.0,84222.0,0.062]
[1742665153156,0.77543871,84223.0,84222.0,0.0614]
[1742665158752,0.77543871,84223.0,84222.0,0.062]
[1742665159266,0.77543871,84223.0,84222.0,0.0614]
[1742665159856,0.77543871,84223.0,84222.0,0.062]
[1742665160459,0.77543871,84223.0,84222.0,0.0614]
[1742665160660,0.77543871,84223.0,84222.0,0.062]
[1742665161869,0.77543871,84223.0,84222.0,0.0614]
[1742665162666,0.77543871,84223.0,84222.0,0.062]
[1742665163477,0.77543871,84223.0,84222.0,0.0614]
[1742665164972,0.77543871,84223.0,84222.0,0.062]
[1742665165575,0.77543871,84223.0,84222.0,0.0614]
[1742665165974,0.77543871,84223.0,84222.0,0.062]
[1742665168084,0.77543871,84223.0,84222.0,0.0614]
[1742665168979,0.77543871,84223.0,84222.0,0.062]
[1742665170187,0.77543871,84223.0,84222.0,0.0614]
[1742665170979,0.77543871,84223.0,84222.0,0.06204]
[1742665171180,0.77543871,84223.0,84222.0,0.0614]
[1742665171486,0.77543871,84223.0,84222.0,0.06208]
[1742665171690,0.77543871,84223.0,84222.0,0.0614]
[1742665173381,0.77543871,84223.0,84222.0,0.06204]
[1742665173576,0.77543871,84223.0,84222.0,0.0614]
[1742665173988,0.77543871,84223.0,84222.0,0.06208]
[1742665174188,0.77543871,84223.0,84222.0,0.0614]
[1742665175185,0.77543871,84223.0,84222.0,0.062]
[1742665175388,0.77543871,84223.0,84222.0,0.0614]
[1742665179284,0.77543871,84223.0,84222.0,0.06208]
[1742665179986,0.77543871,84223.0,84222.0,0.0614]
[1742665184294,0.77543871,84223.0,84222.0,0.06208]
[1742665184483,0.77543871,84223.0,84222.0,0.0614]
[1742665185592,0.48069311,84223.0,84222.0,0.180167]
[1742665185797,0.48069311,84223.0,84222.0,0.180767]
[1742665186295,0.59945871,84223.0,84222.0,0.180767]
[1742665188086,0.59945871,84223.0,84222.0,0.062]
[1742665188397,0.59945871,84223.0,84222.0,0.180167]
[1742665188597,0.59945871,84223.0,84222.0,0.180847]
[1742665191699,0.23865871,84223.0,84222.0,0.180847]
[1742665195003,0.27045871,84223.0,84222.0,0.180847]
[1742665198101,0.27045871,84223.0,84222.0,0.06208]
[1742665198308,0.27045871,84223.0,84222.0,0.0614]
[1742665198710,0.30165871,84223.0,84222.0,0.062]
[1742665199010,0.66245871,84223.0,84222.0,0.062]
[1742665199508,0.66245871,84223.0,84222.0,0.0614]
[1742665200502,0.66245871,84223.0,84222.0,0.062]
[1742665200703,0.66245871,84223.0,84222.0,0.0614]
[1742665201099,0.66245871,84223.0,84222.0,0.062]
[1742665201305,0.66245871,84223.0,84222.0,0.0614]
[1742665212122,0.66245871,84223.0,84222.0,0.03]
[1742665212513,0.66245871,84223.0,84222.0,0.0609]
[1742665218612,0.30165871,84223.0,84222.0,0.0609]
[1742665218925,0.66245871,84223.0,84222.0,0.0615]
[1742665219228,0.66245871,84223.0,84222.0,0.0913]
[1742665222928,0.30165871,84223.0,84222.0,0.0913]
[1742665223114,0.30165871,84223.0,84222.0,0.0919]
[1742665223115,0.66245871,84223.0,84222.0,0.0919]
[1742665223314,0.66245871,84223.0,84222.0,0.0913]
[1742665230827,0.66245871,84223.0,84222.0,0.0919]
[1742665237938,0.66245871,84223.0,84222.0,0.0913]
[1742665238146,0.66245871,84223.0,84222.0,0.0919]
[1742665238837,0.66245871,84223.0,84222.0,0.0913]
[1742665239141,0.66245871,84223.0,84222.0,0.09194]
[1742665241235,0.30165871,84223.0,84222.0,0.09194]
[1742665241435,0.66245871,84223.0,84222.0,0.09194]
[1742665242936,0.30165871,84223.0,84222.0,0.09194]
[1742665243136,0.66245871,84223.0,84222.0,0.09194]
[1742665251441,0.30165871,84223.0,84222.0,0.09194]
[1742665251648,0.66245871,84223.0,84222.0,0.09194]
[1742665254256,0.66245871,84223.0,84222.0,0.0913]
[1742665254753,0.66245871,84223.0,84222.0,0.0925]
[1742665255749,0.30165871,84223.0,84222.0,0.0925]
[1742665255956,0.66245871,84223.0,84222.0,0.0925]
[1742665257555,0.66245871,84223.0,84222.0,0.0913]
[1742665257757,0.66245871,84223.0,84222.0,0.0919]
[1742665262457,0.66245871,84223.0,84222.0,0.0913]
[1742665263855,0.66245871,84223.0,84222.0,0.09198]
[1742665272361,0.66245871,84223.0,84222.0,0.0913]
[1742665272555,0.66245871,84223.0,84222.0,0.09242]
[1742665272756,0.66245871,84223.0,84222.0,0.0913]
[1742665272961,0.66245871,84223.0,84222.0,0.06154]
[1742665273167,0.66245871,84223.0,84222.0,0.0609]
[1742665273879,0.66245871,84223.0,84222.0,0.0615]
[1742665276861,0.66245871,84223.0,84222.0,0.0609]
[1742665277062,0.66245871,84223.0,84222.0,0.0615]
[1742665277975,0.66245871,84223.0,84222.0,0.0609]
[1742665278176,0.30165871,84223.0,84222.0,0.0609]
[1742665278471,0.66245871,84223.0,84222.0,0.0615]
[1742665278666,0.66245871,84223.0,84222.0,0.0609]
[1742665279863,0.30165871,84223.0,84222.0,0.0609]
[1742665280064,0.66245871,84223.0,84222.0,0.06154]
[1742665280367,0.66245871,84223.0,84222.0,0.0609]
[1742665289168,0.30165871,84223.0,84222.0,0.0609]
[1742665289364,0.66245871,84223.0,84222.0,0.06158]
[1742665289679,0.66245871,84223.0,84222.0,0.0609]
[1742665290279,0.36196,84223.0,84222.0,0.180267]
[1742665293280,0.36196,84223.0,84222.0,0.19197253]
[1742665294581,0.00116,84223.0,84222.0,0.19197253]
[1742665296282,8e-05,84239.0,84235.0,0.1187487]
[1742665296474,0.3608,84240.0,84238.0,0.1187445]
[1742665296782,0.0008,84240.0,84239.0,0.1810431]
[1742665296977,0.0008,84240.0,84239.0,0.2128431]
[1742665297373,0.0008,84240.0,84239.0,0.22458382]